[Event "14th BPB Limburg Open 2022"]
[Site "Maastricht"]
[Date "2022.06.04"]
[Round "2.8"]
[White "De Rover, Yong Hoon"]
[Black "Rebers, Eugene"]
[Result "1/2-1/2"]
[ECO "B35"]
[WhiteElo "2365"]
[BlackElo "2194"]
[Annotator "TA"]
[PlyCount "59"]
[EventDate "2022.06.03"]
[EventType "swiss"]
[EventCountry "NED"]
[SourceTitle "playchess.com"]
[Source "ChessBase"]
[SourceQuality "1"]
[TimeControl "7200+15"]

{[%evp 15,59,8,43,41,49,0,0,-3,0,0,0,3,0,-11,-20,-36,-30,-27,-31,-29,-25,-34,-34,-75,-100,-97,53,45,48,11,41,42,147,0,0,0,0,0,0,0,0,0,0,0,0,0]} 1. e4 {[%emt 0:00:23]} c5 {[%emt 0:00:10]} 2. Nf3 {[%emt 0:01:04]} g6 {[%emt 0:00:09]} 3. d4 {[%emt 0:00:49]} cxd4 {[%emt 0:00:07]} 4. Nxd4 {[%emt 0:00:10]} Bg7 {[%emt 0:00:08]} 5. Nc3 {[%emt 0:00:34]} Nc6 {[%emt 0:00:08]} 6. Be3 {[%emt 0:00:17]} Nf6 {[%emt 0:00:10]} 7. Bc4 {[%emt 0:00:31]} O-O {[%emt 0:00:11]} 8. Bb3 {[%emt 0:00:25]} d5 {[%emt 0:00:29]} 9. exd5 {[%emt 0:09:44] B35: Sicilian: Accelerated Dragon with 5 Nc3: main line.} Na5 {[%emt 0:00:23]} 10. h3 {[%emt 0:06:58]} (10. Qd2 $14) 10... Nxb3 $11 {[%emt 0:02:30]} 11. Nxb3 {[%emt 0:03:53]} b6 {[%emt 0:00:14]} 12. Qd2 {[%emt 0:01:32]} Bb7 {[%emt 0:01:41][%cal Rf6d5]} 13. O-O-O {[%emt 0:04:07]} Qd7 {[%emt 0:05:37] [#]} 14. Bd4 $146 {[%emt 0:15:01]} ({Predecessor:} 14. Bh6 Rfd8 15. Bxg7 Kxg7 16. Qd4 Bxd5 17. Nxd5 Qxd5 18. Qxd5 Rxd5 19. Rxd5 Nxd5 20. g3 {0-1 (58) Jakubowski,K (2471)-Shyam,N (2442) Chess.com INT 2021}) 14... Rfd8 {[%emt 0:09:05]} 15. Kb1 {[%emt 0:14:12]} Nxd5 {[%emt 0:14:51]} 16. Bxg7 {[%emt 0:15:14]} Kxg7 {[%emt 0:00:46]} 17. Nxd5 {[%emt 0:02:10]} Bxd5 {[%emt 0:02:32]} 18. Qe3 {[%emt 0:05:10]} Qc7 {[%emt 0:06:50]} 19. Nd4 {[%emt 0:07:09]} Rac8 {[%emt 0:26:22] Strongly threatening ...e5.} 20. f4 {[%emt 0:00:55] Against e5} Qb7 {[%emt 0:15:27]} (20... Bxg2 $17 21. Rhg1 Bd5) 21. Rhe1 $14 {[%emt 0:02:07]} Bxg2 {[%emt 0:13:12]} 22. h4 {[%emt 0:01:29] And now h5 would win.} (22. f5 $5 {[%cal Rh3h4]}) 22... Qd5 {[%emt 0:07:20]} 23. f5 {[%emt 0:05:05][%cal Od4e6] [#] Ne6+! is the strong threat.} (23. Qxe7 Re8 24. Qxe8 Rxe8 25. Rxe8 Qh5 $15) 23... Kh8 {[%emt 0:06:18]} ({Black should try} 23... Qc5 $14) 24. h5 {[%emt 0:07:30]} (24. Qxe7 $16 {Black must now prevent h5.} Rd7 25. Qf6+ Kg8 26. Rd2) 24... gxf5 $11 {[%emt 0:04:17] Hoping for ...Be4. The position is equal.} (24... Rc4 $5 25. c3 gxf5 $11) 25. Qxe7 {[%emt 0:01:03]} Qd6 {[%emt 0:00:44] Inhibits Qf6+.} 26. Qe2 {[%emt 0:06:32]} ({Much worse is} 26. Qxa7 Be4 27. a3 Rc4 28. Rxe4 fxe4 $19) 26... Qd5 {[%emt 0:01:50]} 27. Qe7 {[%emt 0:07:54] [#] Intending Qf6+ and mate.} Qd6 {[%emt 0:00:05] Against Qf6+} 28. Qe2 {[%emt 0:01:02]} ({Don't play} 28. Qxa7 Be4 29. a3 Rc4 30. Rxe4 fxe4 $19) 28... Qd5 {[%emt 0:00:05]} 29. Qe7 {[%emt 0:01:14] White wants to mate with Qf6+.} Qd6 {[%emt 0:00:05] Against Qf6+} 30. Qe2 {[%emt 0:03:31] Weighted Error Value: White=0.19 (very precise) /Black=0.20 (precise)} ({But not} 30. Qxa7 Be4 31. a3 Rc4 32. Rxe4 fxe4 $19) 1/2-1/2

[Event "14th BPB Limburg Open 2022"]
[Site "Maastricht"]
[Date "2022.06.04"]
[Round "2.9"]
[White "Lenaerts, Lennert"]
[Black "Jansen, Bob"]
[Result "1/2-1/2"]
[ECO "C18"]
[WhiteElo "2362"]
[BlackElo "2174"]
[Annotator "TA"]
[PlyCount "65"]
[EventDate "2022.06.03"]
[EventType "swiss"]
[EventCountry "NED"]
[SourceTitle "playchess.com"]
[Source "ChessBase"]
[SourceQuality "1"]
[TimeControl "7200+15"]

{[%evp 17,65,21,29,29,23,20,18,16,41,41,33,46,40,34,43,49,56,56,63,56,81,48,145,131,279,279,207,8,22,14,59,69,89,92,90,58,50,50,50,50,50,51,54,69,55,0,0,0,0,0]} 1. e4 {[%emt 0:00:03]} e6 {[%emt 0:03:12]} 2. d4 {[%emt 0:00:12]} d5 {[%emt 0:00:02]} 3. Nc3 {[%emt 0:00:34]} Bb4 {[%emt 0:00:05]} 4. e5 {[%emt 0:00:56]} c5 {[%emt 0:00:02]} 5. a3 {[%emt 0:00:32]} Ba5 {[%emt 0:00:03]} 6. b4 {[%emt 0:00:51]} cxd4 {[%emt 0:00:03]} 7. Nb5 {[%emt 0:00:18]} Bc7 {[%emt 0:00:29]} 8. f4 {[%emt 0:00:22]} Bd7 {[%emt 0:00:14]} 9. Nxc7+ {[%emt 0:00:07]} Qxc7 {[%emt 0:00:03]} 10. Nf3 {[%emt 0:00:28] C18: French: 3 Nc3 Bb4: Main line: 7 h4 and 7 Qg4.} Ba4 {[%emt 0:00:25]} 11. Bd3 {[%emt 0:00:18]} Ne7 {[%emt 0:00:42] 11...Nc6 is the fancy move.} 12. O-O {[%emt 0:01:49]} a6 {[%emt 0:03:01]} 13. Nxd4 {[%emt 0:01:10]} Nbc6 {[%emt 0:03:17]} 14. Nb3 {[%emt 0:00:16] [#]} O-O $146 {[%emt 0:28:39]} ({Predecessor:} 14... Bb5 15. Bxb5 Qb6+ 16. Nc5 Qxb5 17. c4 Qxc4 18. Nxb7 O-O 19. Bb2 Nxb4 20. Rc1 Nd3 21. Rxc4 Nxb2 {½-½ (28) Schroeder,C (2258)-Perevozchikov,V (2187) FICGS email 2020}) 15. Be3 {[%emt 0:00:20]} Bxb3 {[%emt 0:14:49]} 16. cxb3 {[%emt 0:00:55]} d4 {[%emt 0:00:43]} 17. Bd2 {[%emt 0:02:12]} Qb6 {[%emt 0:05:21]} 18. Qe2 {[%emt 0:11:05]} Nf5 {[%emt 0:26:14]} 19. Rf3 {[%emt 0:11:08]} Rfd8 {[%emt 0:10:57]} ({Black should try} 19... g6 $14) 20. Rh3 $1 $16 {[%emt 0:04:08]} g6 {[%emt 0:01:44] [#]} (20... h6 $16 {was necessary.}) 21. g4 $1 $18 {[%emt 0:14:09]} Ne3 {[%emt 0:02:54] [#]} 22. Bxe3 $2 {[%emt 0:07:10]} (22. Qf2 $1 $18 {[%cal Rf2h4]}) 22... dxe3 $11 {[%emt 0:00:01]} 23. Qxe3 {[%emt 0:00:16]} Qxe3+ {[%emt 0:02:41]} 24. Rxe3 {[%emt 0:01:15]} g5 {[%emt 0:00:02]} 25. fxg5 {[%emt 0:00:30] White is more active.} Nxe5 {[%emt 0:01:01]} 26. Bxh7+ {[%emt 0:01:03]} ({But not} 26. Rxe5 $6 Rxd3 27. Rae1 Rxb3 $11) 26... Kxh7 {[%emt 0:00:03]} 27. Rxe5 $16 {[%emt 0:00:07][%mdl 4096] Endgame Threatens to win with Rf1. KRR-KRR} Rd4 {[%emt 0:02:12]} 28. h3 {[%emt 0:13:09][%cal Bh2h3,Bh3h4,Bh4h5][%mdl 32]} Rd3 $1 {[%emt 0:01:20][%csl LRb3,LRh3]} 29. Rf1 {[%emt 0:00:07]} Kg7 {[%emt 0:03:35]} 30. h4 {[%emt 0:05:35] aiming for Rc5.} Rad8 {[%emt 0:08:27]} 31. Re2 {[%emt 0:13:52]} ({Better is} 31. h5 $14) 31... R8d4 $11 {[%emt 0:01:36]} 32. Rg2 {[%emt 0:01:26]} Rxb3 {[%emt 0:00:43]} 33. h5 {[%emt 0:00:23] Weighted Error Value: White=0.15 (very precise) /Black=0.17 (very precise)} 1/2-1/2

[Event "14th BPB Limburg Open 2022"]
[Site "Maastricht"]
[Date "2022.06.04"]
[Round "2.10"]
[White "Freeke, Matthieu"]
[Black "Bruil, Rembrandt"]
[Result "1/2-1/2"]
[ECO "D00"]
[WhiteElo "2347"]
[BlackElo "2122"]
[Annotator "TA"]
[PlyCount "76"]
[EventDate "2022.06.03"]
[EventType "swiss"]
[EventCountry "NED"]
[SourceTitle "playchess.com"]
[Source "ChessBase"]
[SourceQuality "1"]
[TimeControl "7200+15"]

{[%evp 9,76,0,0,0,14,2,15,0,0,-4,7,0,0,0,6,6,10,0,0,0,0,-4,7,0,0,0,100,89,73,89,112,105,126,89,103,98,110,118,149,146,143,139,149,152,149,106,102,62,51,65,61,70,68,62,100,94,93,93,143,143,141,129,146,144,153,147,144,140,125]} 1. d4 {[%emt 0:03:32]} d5 {[%emt 0:00:06]} 2. Nc3 {[%emt 0:00:52]} Nf6 {[%emt 0:00:08]} 3. Bf4 {[%emt 0:00:04]} e6 {[%emt 0:00:25]} 4. Nb5 {[%emt 0:00:06]} Na6 {[%emt 0:00:05]} 5. e3 {[%emt 0:00:04]} c6 {[%emt 0:06:57]} 6. Nc3 {[%emt 0:00:05] D00: 1 d4 d5: Unusual lines.} Bb4 {[%emt 0:00:20]} 7. Bxa6 {[%emt 0:20:03]} bxa6 {[%emt 0:01:52]} 8. Nge2 {[%emt 0:00:06] The position is equal.} O-O {[%emt 0:02:04]} 9. a3 {[%emt 0:02:47]} Be7 {[%emt 0:00:22]} 10. Na4 {[%emt 0:04:36] [#]} Nd7 $146 {[%emt 0:06:13]} ({Predecessor:} 10... Nh5 11. O-O a5 12. Qd2 Ba6 13. Rfe1 Re8 14. h3 Nxf4 15. exf4 Bb5 16. Nc5 Qb6 17. b4 axb4 18. axb4 a6 19. Nc1 Bc4 20. N1d3 Bxd3 21. cxd3 Reb8 {½-½ (21) Pilgram,K (1992)-Herzog,M (1885) LSS email 2017}) 11. O-O {[%emt 0:12:22][%cal Oc2c4]} a5 {[%emt 0:13:53]} 12. c4 {[%emt 0:17:56]} dxc4 {[%emt 0:00:54]} 13. Qc2 {[%emt 0:00:09]} Ba6 {[%emt 0:00:19]} 14. Rfd1 {[%emt 0:00:06]} Qc8 {[%emt 0:06:40]} 15. Nec3 {[%emt 0:04:48][%cal Be2c3,Bc3e4,Be4d6,Bd6c4,Bc4e5,Be5c6][%mdl 32]} Rd8 {[%emt 0:19:24]} 16. Rac1 {[%emt 0:06:10]} Qb7 {[%emt 0:06:28]} 17. Ne4 {[%emt 0:03:13]} Qb5 {[%emt 0:13:45]} (17... Bb5 $11 {remains equal.}) 18. Bd6 {[%emt 0:14:18]} Bxd6 {[%emt 0:16:44]} 19. Nxd6 {[%emt 0:01:52]} Qd5 {[%emt 0:00:04]} 20. Nxc4 {[%emt 0:03:29] White is more active. Pair of Knights!} Rac8 {[%emt 0:02:26]} 21. b3 {[%emt 0:01:06][%cal Bb2b3,Bb3a4][%mdl 32]} Rb8 {[%emt 0:04:33]} 22. e4 {[%emt 0:05:14]} Qb5 {[%emt 0:02:32]} 23. Rb1 {[%emt 0:00:26]} Nb6 {[%emt 0:02:08][%cal Rb6c4]} 24. Ne5 {[%emt 0:15:40] [#] Strongly threatening Nc3.} Nxa4 {[%emt 0:03:57]} 25. bxa4 {[%emt 0:00:05]} Qe2 {[%emt 0:00:05]} 26. Qxe2 {[%emt 0:00:05]} Bxe2 {[%emt 0:00:06]} 27. Nxc6 {[%emt 0:00:02]} Bxd1 {[%emt 0:00:47]} 28. Rxb8 {[%emt 0:00:05]} Rxb8 {[%emt 0:00:04]} 29. Nxb8 {[%emt 0:00:04]} Bxa4 $16 {[%emt 0:00:04][%mdl 4096] Endgame KB-KN} 30. Na6 $1 {[%emt 0:00:44]} Kf8 {[%emt 0:00:15]} 31. Nc5 {[%emt 0:00:14]} Bb5 {[%emt 0:00:54]} 32. f4 {[%emt 0:03:50]} Ke7 {[%emt 0:00:14]} 33. Kf2 {[%emt 0:00:01]} Kd6 {[%emt 0:03:04]} ({Better is} 33... h5) 34. Nb7+ {[%emt 0:01:39]} Kc7 {[%emt 0:00:13]} 35. Nxa5 {[%emt 0:00:02]} Kb6 {[%emt 0:00:08]} 36. Nb3 {[%emt 0:00:01] White is clearly better.} Bc6 {[%emt 0:00:42]} 37. Ke3 {[%emt 0:00:07]} Kb5 {[%emt 0:00:04]} 38. Nc5 {[%emt 0:00:22]} Kc4 {[%emt 0:00:26] Weighted Error Value: White=0.06 (flawless) /Black=0.14 (very precise)} 1/2-1/2

[Event "14th BPB Limburg Open 2022"]
[Site "Maastricht"]
[Date "2022.06.04"]
[Round "2.11"]
[White "Kucharska, Honorata"]
[Black "Kopylov, Daniel"]
[Result "0-1"]
[ECO "B51"]
[WhiteElo "2181"]
[BlackElo "2292"]
[Annotator "TA"]
[PlyCount "120"]
[EventDate "2022.06.03"]
[EventType "swiss"]
[EventCountry "NED"]
[SourceTitle "playchess.com"]
[Source "ChessBase"]
[SourceQuality "1"]
[TimeControl "7200+15"]

{[%evp 16,120,17,19,31,21,13,0,0,0,0,0,16,0,9,0,14,-13,-14,-10,-21,-20,-14,-23,-23,-8,0,0,0,0,0,-18,-12,-27,-21,-19,-25,-22,-27,-20,6,-11,43,33,41,36,36,34,33,29,32,31,36,30,40,0,15,0,8,0,9,0,0,0,0,0,0,0,0,0,0,0,0,0,0,0,0,0,0,-20,-20,-20,-25,-89,-84,-109,-109,-123,-123,-145,-116,-153,-151,-148,-144,-243,-236,-236,-236,-236,-232,-366,-175,-536,-528,-528,-489]} 1. e4 {[%emt 0:00:02]} c5 {[%emt 0:00:27]} 2. Nf3 {[%emt 0:00:03]} Nc6 {[%emt 0:00:07]} 3. Bb5 {[%emt 0:00:10]} d6 {[%emt 0:00:16]} 4. O-O {[%emt 0:00:10]} Bd7 {[%emt 0:00:17]} 5. Re1 {[%emt 0:00:07]} Nf6 {[%emt 0:00:17]} 6. c3 {[%emt 0:00:05]} a6 {[%emt 0:00:06]} 7. Bf1 {[%emt 0:00:05]} Bg4 {[%emt 0:00:07]} 8. h3 {[%emt 0:00:05]} Bxf3 {[%emt 0:00:46]} 9. Qxf3 {[%emt 0:00:05]} e6 {[%emt 0:00:13] B51: Sicilian: Moscow Variation (3 Bb5+) without 3...Bd7.} 10. d3 {[%emt 0:01:57]} Be7 {[%emt 0:05:09]} 11. Be3 {[%emt 0:05:29]} d5 {[%emt 0:16:26] The position is equal.} 12. Bf4 {[%emt 0:07:18]} O-O {[%emt 0:05:23]} 13. Nd2 {[%emt 0:03:31]} Rc8 {[%emt 0:06:19] [#]} 14. Qe2 $146 {[%emt 0:10:43]} ({Predecessor:} 14. a4 Qb6 15. Rab1 Rfd8 16. exd5 Nxd5 17. Nc4 Qa7 18. Bg3 b5 19. axb5 axb5 20. Ra1 {0-1 (31) Bacrot,E (2674)-Sjugirov,S (2675) Chess.com INT 2020}) 14... b5 {[%emt 0:03:40]} 15. Nf3 {[%emt 0:04:50]} d4 {[%emt 0:06:56]} 16. Red1 {[%emt 0:07:15]} Nd7 {[%emt 0:11:36][%cal Bf6d7,Bd7b6,Bb6d5][%mdl 32]} 17. e5 {[%emt 0:02:18]} dxc3 {[%emt 0:01:22]} 18. bxc3 {[%emt 0:01:27]} Nb6 {[%emt 0:00:26]} 19. Rac1 {[%emt 0:12:47]} b4 {[%emt 0:10:22]} 20. cxb4 {[%emt 0:04:46]} Nd5 {[%emt 0:07:16]} 21. Bd2 {[%emt 0:02:28]} Ncxb4 {[%emt 0:05:51]} 22. a3 {[%emt 0:01:32]} Nc6 {[%emt 0:00:15]} 23. Qe4 {[%emt 0:02:06]} Qb6 {[%emt 0:08:44]} 24. Rb1 {[%emt 0:01:56]} Qa7 {[%emt 0:00:33]} 25. Qg4 {[%emt 0:10:20]} Rfd8 {[%emt 0:00:40]} 26. Rbc1 {[%emt 0:02:28]} Nd4 {[%emt 0:01:45]} 27. Rc4 {[%emt 0:06:23][%cal Rf3d4]} Qb8 {[%emt 0:05:50]} 28. Ba5 {[%emt 0:02:14]} Rd7 {[%emt 0:09:29]} (28... f5 $11 29. Qg3 (29. exf6 Nxf6 30. Qg5 Nd5 $11) 29... Rd7) 29. Nxd4 $14 {[%emt 0:00:54]} cxd4 {[%emt 0:00:41]} 30. Qxd4 {[%emt 0:00:53]} Bxa3 {[%emt 0:04:39]} 31. Rxc8+ {[%emt 0:00:37]} Qxc8 {[%emt 0:00:10]} 32. Qa4 {[%emt 0:00:11]} Bf8 {[%emt 0:07:35]} 33. d4 {[%emt 0:00:54]} Ra7 {[%emt 0:00:26]} 34. Bc4 {[%emt 0:07:36]} Qb7 {[%emt 0:01:43]} 35. Bf1 {[%emt 0:03:13] A strong pair of Bishops.} Ra8 {[%emt 0:00:33]} 36. Rc1 {[%emt 0:02:15]} h6 {[%emt 0:01:43]} 37. Qc4 {[%emt 0:02:19]} Be7 {[%emt 0:00:25]} 38. Ra1 {[%emt 0:01:16][%cal Bc1a1,Ba1a2,Ba2c2][%mdl 32]} Qb2 {[%emt 0:00:38]} 39. Ra2 {[%emt 0:03:03]} Qb1 {[%emt 0:00:02]} 40. Qc2 {[%emt 0:00:12]} Qxc2 {[%emt 0:00:18]} 41. Rxc2 {[%emt 0:00:05]} Bb4 {[%emt 0:00:11]} 42. Ra2 {[%emt 0:00:42]} Nc3 {[%emt 0:00:20]} 43. Ra1 {[%emt 0:00:02]} Bxa5 {[%emt 0:00:26]} 44. Rxa5 $11 {[%emt 0:00:05][%mdl 4096] Endgame KRB-KRN} Rd8 {[%emt 0:00:03]} 45. Ra3 {[%emt 0:04:49]} Nb5 {[%emt 0:00:16]} 46. Rxa6 {[%emt 0:00:52]} Nxd4 {[%emt 0:00:02]} 47. f4 {[%emt 0:00:49]} g5 {[%emt 0:00:08]} 48. fxg5 {[%emt 0:00:43]} hxg5 {[%emt 0:00:06]} 49. Kf2 {[%emt 0:01:33]} (49. Ra3 $11) 49... Nf5 $1 $17 {[%emt 0:00:46]} 50. g4 {[%emt 0:02:28]} Nh4 {[%emt 0:00:25]} 51. Ke3 {[%emt 0:00:28]} Rd5 {[%emt 0:00:09]} 52. Ke4 {[%emt 0:01:04]} Ng6 {[%emt 0:00:01]} 53. Bc4 {[%emt 0:00:44]} Rxe5+ {[%emt 0:00:09]} 54. Kd4 {[%emt 0:00:17]} Kg7 {[%emt 0:00:13]} 55. Ra7 {[%emt 0:00:19] [#]} (55. Ra1 $17) 55... Re1 $1 $19 {[%emt 0:00:15]} 56. Bb5 {[%emt 0:00:30]} Kf6 {[%emt 0:00:44]} 57. Be8 {[%emt 0:00:45][%csl Ge8][%cal Ra7f7] [#]} Ne5 {[%emt 0:00:02]} 58. Rb7 {[%emt 0:00:27]} (58. Ra2 $142) 58... Rh1 {[%emt 0:00:14]} (58... Rd1+ $142 59. Ke4 Rf1) 59. Rb2 $2 {[%emt 0:00:26]} (59. Rb3 {was the crucial defense.}) 59... Rxh3 {[%emt 0:00:17]} 60. Rf2+ {[%emt 0:01:18]} Rf3 {[%emt 0:00:02] Weighted Error Value: White=0.22 (precise) /Black=0.08 (flawless)} 0-1

[Event "14th BPB Limburg Open 2022"]
[Site "Maastricht"]
[Date "2022.06.04"]
[Round "2.12"]
[White "Fischer, Daniel"]
[Black "De Jong, Tom"]
[Result "1-0"]
[ECO "B12"]
[WhiteElo "2367"]
[BlackElo "2174"]
[Annotator "TA"]
[PlyCount "103"]
[EventDate "2022.06.03"]
[EventType "swiss"]
[EventCountry "NED"]
[SourceTitle "playchess.com"]
[Source "ChessBase"]
[SourceQuality "1"]
[TimeControl "7200+15"]

{[%evp 9,103,0,14,17,19,23,23,32,35,16,25,26,41,27,25,17,43,35,43,0,0,-86,-56,-97,-83,-105,-83,-111,-80,-98,-43,-35,-43,-56,-50,-16,-44,-56,0,0,0,0,0,0,0,0,15,0,41,29,150,155,172,172,297,302,324,297,692,675,639,612,1008,400,576,409,387,364,335,327,1312,1287,1409,1409,1077,985,9093,7488,29976,29977,29980,29980,29980,29981,29978,29983,29983,29984,29983,29984,29985,29984,29984,29983,29989,29987]} 1. e4 {[%emt 0:00:04]} c6 {[%emt 0:00:05]} 2. d4 {[%emt 0:00:05]} d5 {[%emt 0:00:05]} 3. e5 {[%emt 0:00:04]} c5 {[%emt 0:00:08]} 4. dxc5 {[%emt 0:00:05]} e6 {[%emt 0:00:07]} 5. a3 {[%emt 0:00:17]} Nc6 {[%emt 0:00:12]} 6. Nf3 {[%emt 0:00:17] B12: Caro-Kann: Advance Variation.} Bxc5 {[%emt 0:00:07]} 7. b4 {[%emt 0:00:42] Inhibits Qa5.} Bb6 {[%emt 0:00:31]} 8. Bb2 {[%emt 0:00:18] White has an edge.} Nge7 {[%emt 0:00:11][%cal Bg8e7,Be7g6,Bg6h8,Bh8f7][%mdl 32]} 9. Nbd2 {[%emt 0:00:29]} O-O {[%emt 0:07:04]} 10. Bd3 {[%emt 0:02:18][%cal Od3h7] Black must now prevent Bxh7+!} Ng6 {[%emt 0:03:09]} 11. b5 {[%emt 0:07:33]} Na5 {[%emt 0:06:24]} 12. g3 {[%emt 0:00:36] [#]} f5 $146 {[%emt 0:09:27]} ({Predecessor:} 12... Bc5 13. Qe2 b6 14. h4 Qc7 15. h5 Ne7 16. Rh3 Bb7 17. O-O-O h6 18. g4 Nc4 19. Nxc4 dxc4 20. Bxc4 {½-½ (29) Hengl,C (2427)-Mercadal Benejam,J (2403) ICCF email 2019}) 13. h4 {[%emt 0:04:19][%cal Bh2h4,Bh4h5][%mdl 32]} Bd7 {[%emt 0:04:49]} 14. h5 {[%emt 0:03:45]} Nh8 {[%emt 0:02:06]} 15. Nd4 {[%emt 0:14:06]} (15. a4 $11 {keeps the balance.}) 15... Nf7 {[%emt 0:05:06]} 16. f4 {[%emt 0:02:31]} Nh6 {[%emt 0:01:11]} 17. Qe2 {[%emt 0:02:20]} Rc8 {[%emt 0:02:46][%cal Oa5c4]} 18. a4 {[%emt 0:16:05]} Ng4 {[%emt 0:17:06]} 19. Rh4 {[%emt 0:08:27]} Kh8 {[%emt 0:04:40]} (19... Qe7 $17 {Hoping for ...Qb4.} 20. Rxg4 fxg4) 20. Rxg4 $15 {[%emt 0:08:32]} fxg4 {[%emt 0:00:02]} 21. Qxg4 {[%emt 0:06:04]} Nc4 {[%emt 0:01:40]} 22. Bxc4 {[%emt 0:03:37]} ({Wrong is} 22. Nxe6 $2 Bxe6 23. Qxe6 Nxb2 $19) 22... dxc4 {[%emt 0:08:22]} 23. N2f3 {[%emt 0:01:16]} c3 {[%emt 0:03:25]} (23... a6 $15) 24. Ba3 $11 {[%emt 0:00:57]} Bc5 {[%emt 0:01:54]} 25. Bxc5 $40 {[%emt 0:01:16][%mdl 128] White attacks.} Rxc5 {[%emt 0:00:06]} 26. Kf2 {[%emt 0:10:16]} ({But not} 26. Nxe6 Qe7 27. f5 Bxe6 28. fxe6 Qc7 $17) 26... Rd5 {[%emt 0:06:35]} 27. h6 {[%emt 0:03:59]} gxh6 {[%emt 0:01:13]} 28. Qh5 {[%emt 0:00:18]} Bc8 {[%emt 0:23:41]} (28... Rg8 $5 {[%cal Rd7e8]} 29. Qxh6 Rg6 $11) 29. Rd1 {[%emt 0:02:25][%cal Ba1d1,Bd1d3,Bd3c3,Bc3c7][%mdl 32]} Qe7 {[%emt 0:01:32] Black is now going downhill.} (29... Rf6 $11) 30. Qxh6 $16 {[%emt 0:02:14]} Rfd8 {[%emt 0:02:45]} 31. Rd3 {[%emt 0:04:35]} a6 {[%emt 0:04:29]} (31... Rg8 {was worth a try.} 32. Rxc3 Rdd8) 32. Rxc3 $18 {[%emt 0:01:31]} axb5 {[%emt 0:02:58]} 33. axb5 {[%emt 0:00:02]} Bd7 $2 {[%emt 0:01:36]} (33... Rg8 34. Qf6+ Qxf6 35. exf6 Rf8) 34. Rc7 {[%emt 0:01:16]} Rc8 {[%emt 0:00:52]} 35. Rxb7 {[%emt 0:02:25]} Qc5 {[%emt 0:00:40]} 36. Qf6+ {[%emt 0:02:27]} Kg8 {[%emt 0:00:02] [#]} 37. Rxd7 $1 {[%emt 0:00:45][%mdl 512]} Rxd7 {[%emt 0:00:13]} 38. Qxe6+ {[%emt 0:00:01]} Rf7 {[%emt 0:00:15]} 39. Kg2 {[%emt 0:00:25] Ng5 is the strong threat. Really sharp!} Rd8 $2 {[%emt 0:00:43]} (39... Qc4 40. Qd6 Qc5) 40. Ng5 {[%emt 0:04:29] Pair of Knights!} Qd5+ {[%emt 0:00:05]} 41. Qxd5 {[%emt 0:00:04]} Rxd5 {[%emt 0:00:02]} 42. Nxf7 {[%emt 0:00:06]} Rxd4 {[%emt 0:00:28][%mdl 4096] Endgame KR-KN} 43. Nd6 {[%emt 0:00:05] [#] Intending c4 and mate.} Rd2+ {[%emt 0:00:11]} 44. Kf3 {[%emt 0:00:01] White mates.} Rxc2 {[%emt 0:00:06]} 45. b6 {[%emt 0:00:26][%cal Bb5b6,Bb6b7][%mdl 32]} Rb2 {[%emt 0:00:27]} 46. b7 {[%emt 0:00:04]} Rb4 {[%emt 0:00:39]} 47. f5 {[%emt 0:00:54][%cal Bf4f5,Bf5f6][%mdl 32]} Kg7 {[%emt 0:00:26]} 48. f6+ {[%emt 0:01:31]} Kg6 {[%emt 0:00:08]} 49. Ke3 {[%emt 0:00:35]} h5 {[%emt 0:00:14]} 50. Kd3 {[%emt 0:00:10]} Rb1 {[%emt 0:00:56]} 51. Kc4 {[%emt 0:00:09]} Rb2 {[%emt 0:00:06]} 52. Nb5 {[%emt 0:00:23] Weighted Error Value: White=0.24 (precise) /Black=0.35} 1-0

[Event "14th BPB Limburg Open 2022"]
[Site "Maastricht"]
[Date "2022.06.04"]
[Round "2.13"]
[White "Van Cappellen, Jonas"]
[Black "Sankalp Gupta"]
[Result "0-1"]
[ECO "C02"]
[WhiteElo "2208"]
[BlackElo "2505"]
[Annotator "TA"]
[PlyCount "56"]
[EventDate "2022.06.03"]
[EventType "swiss"]
[EventCountry "NED"]
[SourceTitle "playchess.com"]
[Source "ChessBase"]
[SourceQuality "1"]
[TimeControl "7200+15"]

{[%evp 13,56,-2,4,-5,12,-20,37,37,89,41,42,41,49,29,32,22,19,14,0,-16,-13,-12,-7,-7,0,-64,-72,-336,-316,-419,-411,-394,-391,-927,-927,-961,-953,-956,-956,-1821,-1822,-1822,-1687,-1674,-1643]} 1. e4 {[%emt 0:05:00]} e6 {[%emt 0:00:34]} 2. d4 {[%emt 0:00:15]} d5 {[%emt 0:00:03]} 3. e5 {[%emt 0:00:07]} c5 {[%emt 0:00:05]} 4. c3 {[%emt 0:00:04]} Nc6 {[%emt 0:00:11]} 5. Nf3 {[%emt 0:00:07]} Bd7 {[%emt 0:02:47]} 6. Be2 {[%emt 0:00:49]} Nge7 {[%emt 0:00:54]} 7. Na3 {[%emt 0:02:44][%cal Bb1a3,Ba3c2,Bc2e3,Be3g2,Bg2f4][%mdl 32]} Ng6 {[%emt 0:09:43]} 8. Nc2 {[%emt 0:01:37] C02: French: Advance Variation.} f6 {[%emt 0:01:46]} 9. Bd3 {[%emt 0:06:29]} f5 {[%emt 0:03:32] [#]} (9... fxe5 $11 10. Bxg6+ hxg6 11. dxe5 Qc7) 10. h4 $146 {[%emt 0:01:13] aiming for h5. White is slightly better.} ({Predecessor:} 10. b3 cxd4 11. cxd4 Be7 12. Bd2 O-O 13. h4 Nh8 14. g4 fxg4 15. Ng5 Bxg5 16. Bxg5 {½-½ (69) Brewer,C (1815)-Dean,R (1835) England 2014}) 10... c4 {[%emt 0:05:33] [#]} ({Black should try} 10... Be7 $14) 11. Be2 {[%emt 0:01:32]} (11. Bf1 $1 $16) 11... Be7 {[%emt 0:00:06]} 12. g3 {[%emt 0:01:43]} O-O {[%emt 0:00:37]} 13. Ne3 {[%emt 0:07:52]} b5 {[%emt 0:00:31]} 14. Ng2 {[%emt 0:07:21]} b4 {[%emt 1:37:23]} 15. h5 {[%emt 0:13:18]} Nh8 {[%emt 0:00:00]} 16. Nf4 {[%emt 0:08:39]} bxc3 {[%emt 0:00:00]} 17. bxc3 {[%emt 0:00:11]} Rb8 {[%emt 0:00:00]} 18. Rg1 {[%emt 0:06:44]} Nf7 {[%emt 0:00:00]} 19. g4 {[%emt 0:19:58]} ({Better is} 19. Kf1 $11) 19... fxg4 $15 {[%emt 0:00:00]} 20. Nh2 {[%emt 0:03:16][%mdl 8192] Now White is beyond hope.} (20. Rxg4 $17 {was the only defense.} Nh6 21. Rg2) 20... Qa5 $19 {[%emt 0:00:00]} 21. Bd2 {[%emt 0:01:52] [#]} Nxd4 $1 {[%emt 0:00:00][%mdl 512]} 22. cxd4 {[%emt 0:00:24]} c3 {[%emt 0:00:00]} 23. Bd3 $2 {[%emt 0:02:49]} (23. Bxc3 Qxc3+ 24. Kf1) 23... cxd2+ {[%emt 0:00:00] Black is clearly winning.} 24. Kf1 {[%emt 0:00:16]} Ng5 {[%emt 0:00:00]} 25. Qxg4 {[%emt 0:04:45]} Qc3 {[%emt 0:00:00][%csl LRa1,LRd4] Threatens to win with ...Rxf4.} 26. Ke2 {[%emt 0:03:16]} Qxd4 {[%emt 0:00:00]} 27. Nf3 {[%emt 0:01:12]} d1=Q+ {[%emt 0:00:00]} 28. Raxd1 {[%emt 0:02:10]} Rb2+ {[%emt 0:00:00] Weighted Error Value: White=0.72/Black=0.15 (very precise)} 0-1